fUST/lending_fUST_20240702
["ID","MTS","AMOUNT","RATE_DAILY","PERIOD"]
[330903171,1719933045204,-341.82057834,0.00014995,2]
[330903173,1719933045214,-240.98487696,0.00014995,2]
[330903359,1719933046538,-500.0,0.00014899,2]
[330903361,1719933046548,-3.53124308,0.00014995,2]
[330903363,1719933046557,-335.11641498,0.00014995,2]
[330903365,1719933046567,-500.0,0.00014995,2]
[330903367,1719933046576,-500.0,0.00014995,2]
[330903369,1719933046586,-151.0,0.00014995,2]
[330903371,1719933046595,-151.0,0.00014995,2]
[330903373,1719933046604,-298.33585408,0.00014995,2]
[330903375,1719933046616,-201.66414592,0.00014995,2]
[330903377,1719933046625,-500.0,0.00014995,2]
[330903379,1719933046634,-500.0,0.00014995,2]
[330903381,1719933046644,-500.0,0.00014995,2]
[330903383,1719933046653,-500.0,0.00014995,2]
[330903385,1719933046663,-500.0,0.00014995,2]
[330903387,1719933046672,-500.0,0.00014995,2]
[330903389,1719933046681,-500.0,0.00014995,2]
[330903391,1719933046691,-500.0,0.00014995,2]
[330903393,1719933046700,-500.0,0.00014995,2]
[330903395,1719933046709,-427.8545853,0.00014995,2]
[330903397,1719933046718,-296.85056231,0.00014995,2]
[330903399,1719933046730,-205.94222023,0.00014995,2]
[330903403,1719933046739,-500.0,0.00014995,2]
[330903406,1719933046772,-500.0,0.00014995,2]
[330903407,1719933046786,-500.0,0.00014995,2]
[330903409,1719933046795,-500.0,0.00014995,2]
[330903411,1719933046804,-500.0,0.00014995,2]
[330903413,1719933046814,-500.0,0.00014995,2]
[330903415,1719933046823,-500.0,0.00014995,2]
[330903417,1719933046832,-500.71226041,0.00014995,2]
[330903419,1719933046841,-501.46509995,0.00014995,2]
[330903421,1719933046849,-505.31031516,0.00014995,2]
[330903423,1719933046858,-501.77292278,0.00014995,2]
[330903424,1719933046867,-500.0,0.00014995,2]
[330903426,1719933046877,-500.0,0.00014995,2]
[330903428,1719933046886,-387.24345435,0.00014995,2]
[330903431,1719933046899,-112.75654565,0.00014995,2]
[330903433,1719933046909,-184.70558059,0.00014995,2]
[330903435,1719933046918,-327.66999418,0.00014995,2]
[330903974,1719933224363,648.50289162,9.999e-05,2]
[330903975,1719933225273,1010.132553,0.00013913,2]
[330903976,1719933275410,412.40789044,9.999e-05,2]
[330903977,1719933284558,864.41717278,9.999e-05,2]
[330903978,1719933330409,412.40789044,0.0001212,2]
[330903979,1719933390917,150.5,0.00014987,62]
[330903980,1719933391219,640.0,0.00014987,62]
[330903981,1719933391377,150.5,0.00014977,62]
[330903982,1719933391793,640.0,0.00014977,62]
[330903983,1719933391840,150.5,0.00014967,62]
[330903984,1719933392333,161.43,0.0001964,62]
[330903985,1719933392368,640.0,0.00014967,62]
[330903986,1719933392945,640.0,0.0001964,62]
[330903987,1719933393833,640.0,0.0001963,62]
[330903988,1719933394598,640.0,0.0001962,62]
[330903989,1719933418259,3000.0,0.00013885,2]
[330903990,1719933422202,24900.0,0.00013885,2]
[330903991,1719933441928,412.40789044,9.999e-05,2]
[330903992,1719933488332,1000.0,0.00014,14]
[330903993,1719933494846,1000.0,0.00014,13]
[330903994,1719933498591,1000.0,0.00014,12]
[330903995,1719933500417,412.40789044,0.0001212,2]
[330903996,1719933501936,1000.0,0.00014,11]
[330903997,1719933504610,1000.0,0.00014,10]
[330903998,1719933507775,1000.0,0.00014,9]
[330903999,1719933510116,150.5,0.00014986,62]
[330904000,1719933510537,1000.0,0.00014,8]
[330904001,1719933510565,150.5,0.00014986,62]
[330904002,1719933510626,150.5,0.00014976,62]
[330904003,1719933511076,150.5,0.00014976,62]
[330904004,1719933511114,150.5,0.00014986,62]
[330904005,1719933511272,150.5,0.00014966,62]
[330904006,1719933511708,196.34,0.00014966,62]
[330904007,1719933511787,150.5,0.00014976,62]
[330904008,1719933511862,256.0,0.00014986,62]
[330904009,1719933511938,150.5,0.00014986,62]
[330904010,1719933512063,150.5,0.00014966,62]
[330904011,1719933512195,256.0,0.00014976,62]
[330904012,1719933512316,150.5,0.00014976,62]
[330904013,1719933513175,1000.0,0.00014,7]
[330904014,1719933513416,256.0,0.00014966,62]
[330904015,1719933513598,150.5,0.00014966,62]
[330904016,1719933513892,256.0,0.0001983,62]
[330904017,1719933514430,256.0,0.0001982,62]
[330904018,1719933514954,256.0,0.0001981,62]
[330904019,1719933589168,150.84915085,0.00019506,30]
[330904020,1719933589246,150.84915085,0.00019116,120]
[330904021,1719933632265,150.5,0.00014985,62]
[330904022,1719933632734,150.5,0.00014975,62]
[330904023,1719933633349,150.5,0.00014965,62]
[330904024,1719933633861,150.5,0.0001929,62]
[330904025,1719933634418,150.5,0.0001928,62]
[330904026,1719933634953,278.9,0.0001927,62]
[330904027,1719933648986,200.68000754,9.999e-05,2]
[330904028,1719933669292,250.0,0.00013811,2]
[330904029,1719933730768,274.22,0.000224,31]
[330904030,1719933730812,274.22,0.000224,31]
[330904031,1719933730853,274.22,0.000224,31]
[330904032,1719933730892,274.22,0.000224,31]
[330904033,1719933730937,274.22,0.000224,31]
[330904034,1719933730987,274.22,0.000224,31]
[330904035,1719933731032,274.22,0.000224,31]
[330904036,1719933731094,274.22,0.000224,31]
[330904037,1719933731140,274.22,0.000224,31]
[330904038,1719933731199,274.22,0.000224,31]
[330904039,1719933731241,274.22,0.000224,31]
[330904040,1719933731282,274.22,0.000224,31]
[330904041,1719933731322,274.22,0.000224,31]
[330904042,1719933731362,274.22,0.000224,31]
[330904043,1719933731415,274.22,0.000224,31]
[330904044,1719933731481,274.22,0.000224,31]
[330904045,1719933731528,274.22,0.000224,31]
[330904046,1719933731593,274.22,0.000224,31]
[330904047,1719933731648,274.22,0.000224,31]
[330904048,1719933731754,274.22,0.000224,31]
[330904049,1719933745667,925.95484,0.00013817,2]
[330904050,1719933800495,412.40789044,9.999e-05,2]
[330904056,1719933856451,565.90871239,0.0001212,2]
[330904060,1719933955032,282.93616103,9.999e-05,2]
[330904061,1719933957750,4499.0057004,0.00013785,2]
[330904062,1719933982859,154.85288975,9.999e-05,2]
[330904063,1719934018938,491.43051952,9.999e-05,2]
[330904064,1719934029350,158.3776396,0.0001212,2]
[330904067,1719934095907,-300.0,0.00014469,2]
[330904069,1719934095938,-300.0,0.00014469,2]
[330904070,1719934095965,-82.5979526,0.0001447,2]
[330904071,1719934096133,-682.5979526,0.0001447,2]
[330904072,1719934099141,150.84915085,0.00019638,30]
[330904073,1719934099172,150.84915085,0.00019245,120]
[330904074,1719934119978,155.63,0.00010959,2]
[330904077,1719934120736,-458.50036217,0.00014435,2]
[330904078,1719934120777,-251.40150854,0.00014469,2]
[330904079,1719934120827,-248.59849146,0.00014469,2]
[330904080,1719934120862,-139.38154676,0.00014469,2]
[330904081,1719934145478,-731.85950889,0.00014469,2]
[330904082,1719934145525,-127.76894435,0.00014469,2]
[330904083,1719934145555,-327.65923013,0.00014469,2]
[330904085,1719934170649,-300.0,0.00014468,2]
[330904086,1719934170680,-80.02229831,0.00014469,2]
[330904087,1719934170721,-755.60526255,0.00014469,2]
[330904089,1719934195926,-778.31781377,0.00014469,2]
[330904090,1719934195975,-493.34701487,0.00014469,2]
[330904159,1719934232393,-6654.93654929,0.00014368,2]
[330904161,1719934232403,-300.0,0.00014468,2]
[330904163,1719934232413,-274.19838037,0.00014469,2]
[330904165,1719934232422,-500.0,0.00014469,2]
[330904167,1719934232431,-247.88793051,0.00014469,2]
[330904169,1719934232440,-5599.0202885,0.00014469,2]
[330904171,1719934232452,-8739.39508762,0.00014469,2]
[330904174,1719934232465,-697.72855824,0.00014469,2]
[330904176,1719934232476,-545.87563572,0.00014469,2]
[330904597,1719934238590,-882.528492,0.00014469,2]
[330904599,1719934240425,-1767.24193792,0.00014469,2]
[330904600,1719934240435,-235.44598207,0.00014469,2]
[330904606,1719934240949,-264.55401793,0.00014469,2]
[330904607,1719934240961,-1929.19,0.00014469,2]
[330904608,1719934240973,-176.03,0.00014469,2]
[330904609,1719934240982,-500.0,0.00014469,2]
[330904610,1719934240991,-500.0,0.00014469,2]
[330904611,1719934241000,-500.0,0.00014469,2]
[330904612,1719934241010,-3067.85,0.00014469,2]
[330904613,1719934241019,-75843.7980566,0.0001447,2]
[330904614,1719934241030,-7370.91453283,0.0001447,2]
[330904767,1719934244292,-4023.57910447,0.0001447,2]
[330904888,1719934246779,-1902.53047322,0.0001447,2]
[330904889,1719934246792,-1398.57585099,0.0001447,2]
[330904891,1719934342542,213.92,0.000224,31]
[330904892,1719934342597,213.92,0.000224,31]
[330904893,1719934342778,213.92,0.000224,31]
[330904894,1719934342835,213.92,0.000224,31]
[330904895,1719934342878,213.92,0.000224,31]
[330904896,1719934342925,213.92,0.000224,31]
[330904897,1719934342979,213.92,0.000224,31]
[330904898,1719934343035,213.92,0.000224,31]
[330904899,1719934343071,213.92,0.000224,31]
[330904900,1719934343129,213.92,0.000224,31]
[330904901,1719934343177,213.92,0.000224,31]
[330904902,1719934343214,213.92,0.000224,31]
[330904903,1719934343270,213.92,0.000224,31]
[330904904,1719934343315,213.92,0.000224,31]
[330904905,1719934343363,213.92,0.000224,31]
[330904906,1719934343415,213.92,0.000224,31]
[330904907,1719934343477,213.92,0.000224,31]
[330904908,1719934343522,74.2616973,0.000224,31]
[330904909,1719934343570,139.6583027,0.000224,31]
[330904910,1719934343728,213.92,0.000224,31]
[330904911,1719934343778,213.92,0.000224,31]
[330904912,1719934343967,150.84915085,0.00019821,30]
[330904913,1719934344066,150.84915085,0.00019425,120]
[330904915,1719934399089,673.421702,0.00013699,2]
[330904924,1719934535331,256.99308137,9.999e-05,2]
[330904926,1719934552979,565.90871239,9.999e-05,2]
[330904931,1719934611955,9609.72356309,0.0001212,2]
[330904933,1719934638710,29263.46763945,0.00014,2]
[330904934,1719934639103,14527.91315295,0.0001,2]
[330904942,1719934655294,528.66244105,9.999e-05,2]
[330904945,1719934672470,1292.65635963,0.0001212,2]
[330904946,1719934672739,726.68067841,0.0001212,2]
[330904947,1719934673569,176.26343742,0.0001212,2]
[330904948,1719934676951,4826.71633385,0.0001212,2]
[330904949,1719934677336,3129.31523282,0.0001212,4]
[330904950,1719934677769,659.88884751,0.0001212,2]
[330904951,1719934677804,159.50203201,0.0001212,2]
[330904952,1719934681859,312.4061696,0.00014,2]
[330904956,1719934685169,2131.93815612,0.0001212,2]
[330904957,1719934685704,154.85288975,0.0001212,2]
[330904958,1719934686125,3769.18827951,0.0001212,2]
[330904959,1719934686160,677.12848532,0.0001212,2]
[330904960,1719934686909,638.26535884,0.0001212,2]
[330904961,1719934687597,155.47216477,0.0001212,2]
[330904962,1719934688204,2095.24835011,0.0001212,2]
[330904963,1719934688458,2099.6884772,0.0001212,2]
[330904966,1719934689383,207.95202431,0.0001212,2]
[330904967,1719934689789,150.84915085,0.0001996,30]
[330904968,1719934689858,150.84915085,0.00019561,120]
[330904969,1719934690399,328.42255755,0.0001212,2]
[330904970,1719934690436,156.1359142,0.0001212,2]
[330904971,1719934690558,406.02029299,0.0001212,2]
[330904972,1719934690650,164.49158165,0.0001212,2]
[330904974,1719934694869,525.021528,0.0001212,2]
[330904983,1719934715347,3129.31523282,0.0001212,4]
[330904984,1719934718411,500.0,0.00023,120]
[330904985,1719934718729,500.0,0.00023,120]
[330904986,1719934719203,500.0,0.00023,120]
[330904987,1719934719489,500.0,0.00023,120]
[330904988,1719934719962,500.0,0.00023,120]
[330904989,1719934720264,500.0,0.00023,120]
[330904990,1719934720717,500.0,0.00023,120]
[330904991,1719934721026,500.0,0.00023,120]
[330904992,1719934721471,500.0,0.00023,120]
[330904993,1719934721560,163.81331122,0.0001212,2]
[330904995,1719934722351,500.0,0.00023,120]
[330904996,1719934722812,417.06,0.00023,120]
[330904997,1719934723171,500.0,0.00023,120]
[330904998,1719934724003,500.0,0.00023,120]
[330905000,1719934729355,209.5162882,0.0001212,2]
[330905001,1719934731682,155.58366905,0.0001212,2]
[330905002,1719934733149,2242.95761129,0.0001212,2]
[330905003,1719934819934,457.45943987,9.999e-05,2]
[330905010,1719934845488,402.64531294,0.0001212,2]
[330905011,1719934850222,180.50662285,0.0001212,2]
[330905012,1719934853672,164.85188126,0.0001212,2]
[330905013,1719934856381,155.25403334,0.0001212,2]
[330905014,1719934857860,195.47966853,0.0001212,2]
[330905015,1719934858022,661.12832609,9.999e-05,2]
[330905016,1719934860257,216.810215,9.999e-05,2]
[330905017,1719934861836,274.36678504,0.0001212,2]
[330905018,1719934864630,1487.60034683,0.0001212,2]
[330905019,1719934865170,299.51409041,0.0001212,2]
[330905020,1719934865770,159.35965211,0.0001212,2]
[330905021,1719934868926,318.0694556,0.0001212,2]
[330905022,1719934869451,226.4192049,9.999e-05,2]
[330905023,1719934872798,156.6027487,9.999e-05,2]
[330905024,1719934874254,208.37564863,9.999e-05,2]
[330905025,1719934879202,154.85288975,0.0001212,2]
[330905026,1719934879260,205.44153925,9.999e-05,2]
[330905027,1719934880238,286.39912426,0.0001212,2]
[330905028,1719934881184,723.95900882,9.999e-05,2]
[330905029,1719934883808,373.78265909,9.999e-05,2]
[330905030,1719934884007,565.90871239,9.999e-05,2]
[330905031,1719934887249,222.44452854,0.0001212,2]
[330905032,1719934887356,269.37897066,9.999e-05,2]
[330905033,1719934889878,179.54081427,9.999e-05,2]
[330905034,1719934895694,240.56140798,9.999e-05,2]
[330905035,1719934896554,176.00680323,0.0001212,2]
[330905036,1719934898392,292.99777244,9.999e-05,2]
[330905037,1719934898712,516.9453028,9.999e-05,2]
[330905038,1719934907340,1118.02971172,0.0001212,2]
[330905039,1719934908780,205.64439346,0.0001212,2]
[330905040,1719934919127,284.72396714,0.0001212,2]
[330905041,1719934919335,154.99225039,0.0001212,2]
[330905045,1719934954453,176.64,0.000224,31]
[330905046,1719934954708,176.64,0.000224,31]
[330905047,1719934954775,176.64,0.000224,31]
[330905048,1719934954844,176.64,0.000224,31]
[330905049,1719934954906,176.64,0.000224,31]
[330905050,1719934954966,176.64,0.000224,31]
[330905051,1719934955025,176.64,0.000224,31]
[330905052,1719934955085,176.64,0.000224,31]
[330905053,1719934955154,176.64,0.000224,31]
[330905054,1719934955208,176.64,0.000224,31]
[330905055,1719934955271,176.64,0.000224,31]
[330905056,1719934955322,176.64,0.000224,31]
[330905057,1719934955370,176.64,0.000224,31]
[330905058,1719934955430,176.64,0.000224,31]
[330905059,1719934955560,176.64,0.000224,31]
[330905060,1719934955621,176.64,0.000224,31]
[330905061,1719934955670,176.64,0.000224,31]
[330905062,1719934955770,176.64,0.000224,31]
[330905063,1719934955844,176.64,0.000224,31]
[330905064,1719934955902,176.64,0.000224,31]
[330905065,1719934976364,2060.7318366,0.00013345,2]
[330905066,1719934987379,6797.01479577,0.00014001,2]
[330905067,1719935026044,526.110704,0.00013699,2]
[330905068,1719935040811,154.85288975,9.999e-05,2]
[330905069,1719935044585,282.93616103,9.999e-05,2]
[330905070,1719935047495,208.83961786,9.999e-05,2]
[330905071,1719935048774,154.85288975,9.999e-05,2]
[330905077,1719935094942,154.85288975,0.0001212,2]
[330905078,1719935096774,154.85288975,0.0001212,2]
[330905079,1719935098297,155.06962963,0.0001212,2]
[330905080,1719935098867,207.71530322,9.999e-05,2]
[330905081,1719935106795,525.021528,0.0001212,2]
[330905082,1719935109529,154.85288975,0.0001212,2]
[330905084,1719935125791,154.85288975,0.0001212,2]
[330905085,1719935141091,1569.01894779,0.0001212,2]
[330905086,1719935143661,154.85288975,0.0001212,2]
[330905087,1719935145031,155.19844252,0.0001212,2]
[330905088,1719935146795,293.20866309,0.0001212,2]
[330905089,1719935148197,2040.81356743,0.0001212,2]
[330905091,1719935158778,155.5322796,0.0001212,2]
[330905092,1719935163960,5287.92984094,0.00013991,2]
[330905093,1719935179790,154.99225039,0.0001212,2]
[330905095,1719935264120,154.85288975,9.999e-05,2]
[330905096,1719935266166,309.65937238,9.999e-05,2]
[330905098,1719935304618,155.15244213,0.0001212,2]
[330905099,1719935308501,-167.59252921,0.00014077,2]
[330905101,1719935308530,-190.83419177,0.00014268,2]
[330905102,1719935308560,-341.45508607,0.00014299,2]
[330905103,1719935308594,-446.0493472,0.00014299,2]
[330905104,1719935333429,-194.77817103,0.00014299,2]
[330905105,1719935333471,-526.8161603,0.00014299,2]
[330905106,1719935333510,-1.2060988,0.000143,2]
[330905107,1719935333559,-577.19956987,0.000143,2]
[330905108,1719935358231,-748.80043013,0.000143,2]
[330905109,1719935358300,-29.5539012,0.000143,2]
[330905111,1719935358329,-122.81309724,0.000143,2]
[330905113,1719935383145,-377.18690276,0.000143,2]
[330905114,1719935383172,-389.63687595,0.00014316,2]
[330905115,1719935383250,-283.07496502,0.00014316,2]
[330905116,1719935408105,-309.57076329,0.00014316,2]
[330905117,1719935408132,-478.25099029,0.00014332,2]
[330905141,1719935432199,-504.03161397,0.00014332,2]
[330905142,1719935432209,-982.28260426,0.00014349,2]
[330905143,1719935432218,-982.28260426,0.00014365,2]
[330905144,1719935432228,-300.0,0.00014397,2]
[330905145,1719935432238,-300.0,0.00014397,2]
[330905146,1719935432247,-500.0,0.00014398,2]
[330905147,1719935432257,-1118.32,0.00014398,2]
[330905148,1719935432271,-2915.97,0.00014398,2]
[330905149,1719935432281,-500.0,0.00014398,2]
[330905150,1719935432291,-18317.1709937,0.00014398,2]
[330905166,1719935438154,-2579.81092347,0.00014398,2]
[330905169,1719935438167,-422.92808283,0.00014398,2]
[330905171,1719935438178,-2354.27,0.00014398,2]
[330905173,1719935438187,-3751.71,0.00014398,2]
[330905175,1719935438197,-500.0,0.00014398,2]
[330905177,1719935438206,-500.0,0.00014399,2]
[330905179,1719935438215,-500.0,0.00014399,2]
[330905181,1719935438225,-500.0,0.00014399,2]
[330905183,1719935438235,-500.0,0.00014399,2]
[330905185,1719935438244,-500.0,0.00014399,2]
[330905187,1719935438253,-500.0,0.00014399,2]
[330905189,1719935438265,-500.0,0.00014399,2]
[330905190,1719935438276,-500.0,0.00014399,2]
[330905191,1719935438286,-500.0,0.00014399,2]
[330905192,1719935438295,-1251.39,0.00014399,2]
[330905194,1719935438306,-1357.95,0.00014399,2]
[330905196,1719935438318,-500.0,0.00014399,2]
[330905197,1719935438328,-500.0,0.00014399,2]
[330905198,1719935438337,-500.0,0.00014399,2]
[330905199,1719935438349,-576.88,0.00014399,2]
[330905200,1719935438359,-500.0,0.00014399,2]
[330905201,1719935438369,-500.0,0.00014399,2]
[330905202,1719935438378,-504.32857135,0.00014399,2]
[330905203,1719935438388,-500.0,0.00014399,2]
[330905204,1719935438398,-500.0,0.00014399,2]
[330905205,1719935438407,-500.0,0.00014399,2]
[330905206,1719935438418,-1936.89,0.00014399,2]
[330905207,1719935438428,-503.92870865,0.00014399,2]
[330905208,1719935438437,-502.75853814,0.00014399,2]
[330905209,1719935438447,-2093.59,0.00014399,2]
[330905210,1719935438457,-500.0,0.00014399,2]
[330905211,1719935438467,-500.0,0.00014399,2]
[330905212,1719935438476,-507.61178808,0.00014399,2]
[330905213,1719935438486,-1159.37,0.00014399,2]
[330905214,1719935438496,-500.0,0.00014399,2]
[330905215,1719935438505,-513.74471728,0.00014399,2]
[330905216,1719935438515,-500.0,0.00014399,2]
[330905217,1719935438524,-504.50325802,0.00014399,2]
[330905218,1719935438534,-500.0,0.00014399,2]
[330905219,1719935438543,-500.0,0.00014399,2]
[330905220,1719935438553,-500.0,0.00014399,2]
[330905221,1719935438564,-491.35864158,0.00014399,2]
[330905222,1719935438574,-500.0,0.00014399,2]
[330905223,1719935438583,-500.0,0.00014399,2]
[330905224,1719935438593,-1046.12,0.00014399,2]
[330905225,1719935438602,-500.0,0.00014399,2]
[330905226,1719935438612,-500.0,0.00014399,2]
[330905227,1719935438621,-500.0,0.00014399,2]
[330905228,1719935438631,-4552.67,0.00014399,2]
[330905229,1719935438640,-526.18308385,0.00014399,2]
[330905230,1719935438649,-500.0,0.00014399,2]
[330905231,1719935438659,-642.72365021,0.00014399,2]
[330905232,1719935438669,-546.65,0.00014399,2]
[330905233,1719935438678,-500.0,0.00014399,2]
[330905234,1719935438687,-500.0,0.00014399,2]
[330905235,1719935438697,-500.0,0.00014399,2]
[330905236,1719935438706,-500.0,0.00014399,2]
[330905237,1719935438715,-500.0,0.00014399,2]
[330905238,1719935438725,-500.0,0.00014399,2]
[330905239,1719935438735,-579.75,0.00014399,2]
[330905240,1719935438744,-606.62,0.00014399,2]
[330905241,1719935438754,-739.38,0.00014399,2]
[330905242,1719935438763,-4571.06,0.00014399,2]
[330905243,1719935438773,-1315.88,0.00014399,2]
[330905244,1719935438782,-254.12,0.00014399,2]
[330905245,1719935438792,-5960.8,0.00014399,2]
[330905246,1719935438802,-571.78,0.00014399,2]
[330905247,1719935438813,-514.47175376,0.000144,2]
[330905248,1719935438827,-16629.04650554,0.000144,2]
[330905274,1719935440637,-16882.44525818,0.000144,2]
[330905277,1719935440700,-21070.653,0.000144,2]
[330905278,1719935440712,-13064.38348252,0.000144,2]
[330905279,1719935440722,-500.0,0.000144,2]
[330905280,1719935440732,-250.0,0.00014413,2]
[330905281,1719935440882,-24900.0,0.00014413,2]
[330905282,1719935440892,-155.78672442,0.00014413,2]
[330905311,1719935443319,-623.47803253,0.00014413,2]
[330905312,1719935443330,-869.94591213,0.00014413,2]
[330905313,1719935443342,-330.29329238,0.00014413,2]
[330905314,1719935443355,-1020.49603854,0.00014413,2]
[330905315,1719935443364,-989.86574652,0.00014465,2]
[330905316,1719935443376,-1610.0,0.00014465,2]
[330905317,1719935443392,-8306.24061548,0.00014465,2]
[330905392,1719935446279,-500.0,0.00014398,2]
[330905393,1719935446289,-500.0,0.00014399,2]
[330905395,1719935446298,-142.63017123,0.00014465,2]
[330905399,1719935446343,-2063.31876092,0.00014465,2]
[330905400,1719935446354,-1368.90309208,0.00014467,2]
[330905401,1719935446365,-466.16787958,0.00014467,2]
[330905402,1719935446377,-2074.65851718,0.00014467,2]
[330905403,1719935446386,-500.0,0.00014467,2]
[330905404,1719935446396,-500.0,0.00014467,2]
[330905405,1719935446405,-576.86066059,0.00014467,2]
[330905406,1719935446416,-196.90950363,0.00014467,2]
[330905407,1719935446429,-488.71049637,0.00014467,2]
[330905408,1719935446440,-529.41,0.00014467,2]
[330905409,1719935446449,-500.0,0.00014467,2]
[330905410,1719935446458,-593.22,0.00014467,2]
[330905411,1719935446468,-500.0,0.00014467,2]
[330905412,1719935446478,-500.0,0.00014467,2]
[330905413,1719935446487,-500.0,0.00014467,2]
[330905414,1719935446497,-500.0,0.00014467,2]
[330905415,1719935446506,-500.0,0.00014467,2]
[330905416,1719935446516,-500.0,0.00014467,2]
[330905417,1719935446525,-2013.23,0.00014467,2]
[330905418,1719935446535,-500.0,0.00014467,2]
[330905419,1719935446544,-370.03,0.00014467,2]
[330905420,1719935446553,-500.0,0.00014467,2]
[330905421,1719935446562,-575.35,0.00014467,2]
[330905422,1719935446573,-500.0,0.00014467,2]
[330905423,1719935446582,-560.52,0.00014467,2]
[330905424,1719935446592,-517.62036419,0.00014467,2]
[330905425,1719935446602,-431.99558573,0.00014467,2]
[330905426,1719935446611,-500.0,0.00014467,2]
[330905427,1719935446621,-500.0,0.00014467,2]
[330905428,1719935446630,-1156.38,0.00014467,2]
[330905429,1719935446640,-500.0,0.00014467,2]
[330905430,1719935446650,-628.18,0.00014467,2]
[330905431,1719935446659,-500.0,0.00014467,2]
[330905432,1719935446669,-2991.79,0.00014467,2]
[330905433,1719935446679,-500.0,0.00014467,2]
[330905434,1719935446689,-503.19,0.00014467,2]
[330905435,1719935446699,-500.0,0.00014467,2]
[330905436,1719935446708,-502.95438289,0.00014467,2]
[330905437,1719935446718,-500.0,0.00014468,2]
[330905438,1719935446728,-500.0,0.00014468,2]
[330905439,1719935446737,-500.0,0.00014468,2]
[330905440,1719935446746,-838.16,0.00014468,2]
[330905441,1719935446756,-500.0,0.00014468,2]
[330905442,1719935446765,-939.04,0.00014468,2]
[330905443,1719935446775,-500.0,0.00014468,2]
[330905444,1719935446784,-500.0,0.00014468,2]
[330905445,1719935446794,-934.53,0.00014468,2]
[330905446,1719935446803,-1114.32,0.00014468,2]
[330905447,1719935446812,-500.0,0.00014468,2]
[330905448,1719935446825,-500.0,0.00014468,2]
[330905449,1719935446835,-500.0,0.00014468,2]
[330905450,1719935446844,-500.0,0.00014468,2]
[330905451,1719935446853,-500.0,0.00014468,2]
[330905452,1719935446862,-500.0,0.00014468,2]
[330905453,1719935446871,-500.0,0.00014468,2]
[330905454,1719935446881,-500.0,0.00014468,2]
[330905455,1719935446891,-500.0,0.00014468,2]
[330905456,1719935446901,-500.0,0.00014468,2]
[330905457,1719935446911,-500.0,0.00014468,2]
[330905458,1719935446921,-500.0,0.00014468,2]
[330905459,1719935446930,-500.0,0.00014468,2]
[330905460,1719935446940,-500.0,0.00014468,2]
[330905461,1719935446949,-500.0,0.00014468,2]
[330905462,1719935446959,-500.0,0.00014468,2]
[330905463,1719935446969,-500.0,0.00014468,2]
[330905464,1719935446978,-500.0,0.00014468,2]
[330905465,1719935446987,-500.0,0.00014468,2]
[330905466,1719935446997,-500.0,0.00014468,2]
[330905467,1719935447006,-157.85969961,0.00014468,2]
[330905468,1719935447016,-500.0,0.00014468,2]
[330905469,1719935447025,-500.0,0.00014468,2]
[330905470,1719935447035,-627.61,0.00014468,2]